fUSD/lending_fUSD_20241223
["ID","MTS","AMOUNT","RATE_DAILY","PERIOD"]
[346363306,1734912647952,-992.65,0.00019452,2]
[346363308,1734912647961,-500.0,0.00019452,2]
[346363310,1734912647970,-897.19,0.00019452,2]
[346363312,1734912647979,-2628.3,0.00019452,2]
[346363314,1734912647991,-500.0,0.00019452,2]
[346363316,1734912648001,-500.0,0.00019452,2]
[346363318,1734912648011,-799.41,0.00019452,2]
[346363320,1734912648022,-500.0,0.00019452,2]
[346363322,1734912648036,-2248.91,0.00019452,2]
[346363324,1734912648046,-500.0,0.00019452,2]
[346363326,1734912648056,-657.67,0.00019452,2]
[346363328,1734912648066,-500.0,0.00019452,2]
[346363330,1734912648076,-808.12,0.00019452,2]
[346363333,1734912648087,-5037.59,0.00019452,2]
[346363335,1734912648098,-500.0,0.00019452,2]
[346363337,1734912648108,-1526.11,0.00019452,2]
[346363339,1734912648118,-1439.39,0.00019452,2]
[346363341,1734912648128,-500.0,0.00019452,2]
[346363343,1734912648138,-617.54,0.00019452,2]
[346363345,1734912648147,-500.0,0.00019452,2]
[346363347,1734912648158,-500.0,0.00019452,2]
[346363349,1734912648168,-6319.69,0.00019452,2]
[346363351,1734912648177,-500.0,0.00019452,2]
[346363353,1734912648187,-725.09,0.00019452,2]
[346363355,1734912648197,-500.0,0.00019452,2]
[346363357,1734912648207,-500.0,0.00019452,2]
[346363359,1734912648216,-500.0,0.00019452,2]
[346363361,1734912648227,-500.0,0.00019452,2]
[346363363,1734912648237,-500.0,0.00019452,2]
[346363365,1734912648248,-1140.46,0.00019452,2]
[346363367,1734912648259,-500.0,0.00019452,2]
[346363369,1734912648270,-802.82,0.00019452,2]
[346363371,1734912648285,-500.0,0.00019452,2]
[346363373,1734912648295,-588.87,0.00019452,2]
[346363375,1734912648305,-513.38,0.00019452,2]
[346363377,1734912648316,-974.15,0.00019452,2]
[346363379,1734912648326,-1387.39,0.00019452,2]
[346363381,1734912648336,-500.0,0.00019452,2]
[346363383,1734912648346,-920.71,0.00019452,2]
[346363385,1734912648356,-831.67,0.00019452,2]
[346363387,1734912648366,-500.0,0.00019452,2]
[346363389,1734912648376,-558.17,0.00019452,2]
[346363391,1734912648386,-544.78,0.00019452,2]
[346363393,1734912648395,-1197.26,0.00019452,2]
[346363395,1734912648406,-908.23,0.00019452,2]
[346363397,1734912648416,-500.0,0.00019452,2]
[346363399,1734912648426,-500.0,0.00019452,2]
[346363401,1734912648436,-1634.03,0.00019452,2]
[346363403,1734912648446,-500.0,0.00019452,2]
[346363405,1734912648456,-500.0,0.00019452,2]
[346363407,1734912648466,-500.0,0.00019452,2]
[346363410,1734912648476,-1307.81,0.00019452,2]
[346363411,1734912648486,-1460.65,0.00019452,2]
[346363414,1734912648496,-500.0,0.00019452,2]
[346363416,1734912648506,-500.0,0.00019452,2]
[346363418,1734912648516,-500.0,0.00019452,2]
[346363420,1734912648527,-840.69,0.00019452,2]
[346363422,1734912648537,-500.0,0.00019452,2]
[346363424,1734912648547,-1123.22,0.00019452,2]
[346363426,1734912648557,-1396.96,0.00019452,2]
[346363428,1734912648567,-500.0,0.00019452,2]
[346363430,1734912648576,-5997.69,0.00019452,2]
[346363432,1734912648586,-500.0,0.00019452,2]
[346363434,1734912648596,-500.0,0.00019452,2]
[346363436,1734912648606,-1522.97,0.00019452,2]
[346363438,1734912648615,-4116.24,0.00019452,2]
[346363440,1734912648625,-500.0,0.00019452,2]
[346363442,1734912648635,-500.0,0.00019452,2]
[346363444,1734912648644,-3274.36,0.00019452,2]
[346363446,1734912648654,-694.16,0.00019452,2]
[346363448,1734912648663,-1484.64,0.00019452,2]
[346363450,1734912648672,-1208.59,0.00019452,2]
[346363452,1734912648681,-500.0,0.00019452,2]
[346363454,1734912648690,-500.0,0.00019452,2]
[346363456,1734912648700,-2039.95,0.00019452,2]
[346363458,1734912648710,-1104.54,0.00019452,2]
[346363460,1734912648721,-500.0,0.00019452,2]
[346363461,1734912648731,-3289.94,0.00019452,2]
[346363464,1734912648740,-500.0,0.00019452,2]
[346363466,1734912648750,-548.23,0.00019452,2]
[346363468,1734912648760,-644.75,0.00019452,2]
[346363470,1734912648769,-500.0,0.00019452,2]
[346363472,1734912648780,-500.0,0.00019452,2]
[346363474,1734912648790,-1546.76,0.00019452,2]
[346363476,1734912648801,-500.0,0.00019452,2]
[346363478,1734912648811,-855.76,0.00019452,2]
[346363480,1734912648821,-884.64,0.00019452,2]
[346363482,1734912648831,-500.0,0.00019452,2]
[346363484,1734912648841,-500.0,0.00019452,2]
[346363486,1734912648850,-1414.3,0.00019452,2]
[346363488,1734912648860,-1767.64,0.00019452,2]
[346363490,1734912648870,-500.0,0.00019452,2]
[346363492,1734912648879,-500.0,0.00019452,2]
[346363494,1734912648889,-1364.64,0.00019452,2]
[346363496,1734912648898,-500.0,0.00019452,2]
[346363498,1734912648908,-500.0,0.00019452,2]
[346363500,1734912648917,-500.0,0.00019452,2]
[346363502,1734912648926,-1787.92,0.00019452,2]
[346363504,1734912648936,-1026.37,0.00019452,2]
[346363506,1734912648945,-3081.94,0.00019452,2]
[346363508,1734912648955,-500.0,0.00019452,2]
[346363510,1734912648964,-1141.13,0.00019452,2]
[346363512,1734912648974,-585.16,0.00019452,2]
[346363514,1734912648983,-2628.75,0.00019452,2]
[346363515,1734912648998,-500.0,0.00019452,2]
[346363516,1734912649007,-500.0,0.00019452,2]
[346363518,1734912649017,-3276.76,0.00019452,2]
[346363520,1734912649028,-783.26,0.00019452,2]
[346363522,1734912649039,-500.0,0.00019452,2]
[346363524,1734912649049,-587.89,0.00019452,2]
[346363526,1734912649058,-500.0,0.00019452,2]
[346363528,1734912649069,-500.0,0.00019452,2]
[346363530,1734912649080,-500.0,0.00019452,2]
[346363532,1734912649090,-572.85,0.00019452,2]
[346363534,1734912649100,-3129.03,0.00019452,2]
[346363536,1734912649109,-500.0,0.00019452,2]
[346363538,1734912649118,-500.0,0.00019452,2]
[346363540,1734912649128,-500.0,0.00019452,2]
[346363542,1734912649137,-5380.51,0.00019452,2]
[346363544,1734912649146,-500.0,0.00019452,2]
[346363546,1734912649156,-500.0,0.00019452,2]
[346363548,1734912649167,-731.92,0.00019452,2]
[346363550,1734912649176,-500.0,0.00019452,2]
[346363552,1734912649186,-829.64,0.00019452,2]
[346363554,1734912649196,-500.0,0.00019452,2]
[346363556,1734912649206,-3251.37,0.00019452,2]
[346363558,1734912649215,-1677.91,0.00019452,2]
[346363560,1734912649225,-743.31,0.00019452,2]
[346363562,1734912649235,-500.0,0.00019452,2]
[346363564,1734912649244,-780.77,0.00019452,2]
[346363566,1734912649254,-500.0,0.00019452,2]
[346363568,1734912649263,-500.0,0.00019452,2]
[346363570,1734912649274,-500.0,0.00019452,2]
[346363572,1734912649289,-3072.68,0.00019452,2]
[346363574,1734912649299,-872.52,0.00019452,2]
[346363577,1734912649309,-500.0,0.00019452,2]
[346363579,1734912649320,-500.0,0.00019452,2]
[346363581,1734912649330,-7209.38,0.00019452,2]
[346363583,1734912649340,-500.0,0.00019452,2]
[346363585,1734912649350,-500.0,0.00019452,2]
[346363587,1734912649360,-500.0,0.00019452,2]
[346363589,1734912649370,-500.0,0.00019452,2]
[346363591,1734912649379,-1201.98,0.00019452,2]
[346363593,1734912649389,-777.4,0.00019452,2]
[346363595,1734912649398,-500.0,0.00019452,2]
[346363597,1734912649408,-991.46,0.00019452,2]
[346363599,1734912649418,-725.99,0.00019452,2]
[346363601,1734912649428,-492.84,0.00019452,2]
[346363603,1734912649438,-159.50120866,0.00019489,2]
[346363605,1734912649448,-3879.96087023,0.00019535,2]
[346363607,1734912649459,-151.78730538,0.00019548,2]
[346363609,1734912649470,-1006.70540879,0.000196,2]
[346363611,1734912649480,-1041.30565986,0.000196,2]
[346363613,1734912649491,-3879.96087023,0.00019626,2]
[346363615,1734912649501,-151.78730538,0.00019665,2]
[346363617,1734912649511,-159.50120866,0.00019695,2]
[346363620,1734912649521,-3879.96087023,0.00019717,2]
[346363622,1734912649534,-500.0,0.00019725,2]
[346363624,1734912649544,-538.73,0.00019725,2]
[346363626,1734912649554,-1111.04,0.00019725,2]
[346363628,1734912649564,-1995.32,0.00019725,2]
[346363630,1734912649574,-1258.39,0.00019725,2]
[346363632,1734912649584,-601.75,0.00019725,2]
[346363634,1734912649593,-1113.31,0.00019725,2]
[346363636,1734912649603,-1241.85,0.00019725,2]
[346363638,1734912649612,-500.0,0.00019725,2]
[346363640,1734912649622,-1104.29,0.00019725,2]
[346363642,1734912649632,-2226.53,0.00019725,2]
[346363644,1734912649642,-697.69,0.00019725,2]
[346363646,1734912649652,-3033.16,0.00019725,2]
[346363648,1734912649661,-16473.09,0.00019725,2]
[346363650,1734912649671,-619.07,0.00019725,2]
[346363652,1734912649680,-1764.05,0.00019725,2]
[346363654,1734912649689,-1060.44,0.00019725,2]
[346363656,1734912649699,-691.9,0.00019725,2]
[346363658,1734912649708,-2056.87,0.00019725,2]
[346363660,1734912649718,-12064.45,0.00019725,2]
[346363662,1734912649728,-500.0,0.00019725,2]
[346363664,1734912649737,-1197.58,0.00019725,2]
[346363667,1734912649747,-1397.66,0.00019725,2]
[346363669,1734912649756,-912.96,0.00019725,2]
[346363671,1734912649765,-2420.18,0.00019725,2]
[346363673,1734912649775,-500.0,0.00019725,2]
[346363675,1734912649787,-1000.0,0.00019725,2]
[346363677,1734912649799,-972.58,0.00019725,2]
[346363679,1734912649809,-500.0,0.00019726,2]
[346363681,1734912649818,-500.0,0.00019726,2]
[346363683,1734912649827,-500.0,0.00019726,2]
[346363685,1734912649837,-500.0,0.00019726,2]
[346363687,1734912649846,-550.27783333,0.00019726,2]
[346363689,1734912649856,-500.0,0.00019726,2]
[346363691,1734912649865,-500.0,0.00019726,2]
[346363693,1734912649874,-500.0,0.00019726,2]
[346363695,1734912649883,-500.0,0.00019726,2]
[346363697,1734912649893,-500.0,0.00019726,2]
[346363699,1734912649902,-500.0,0.00019726,2]
[346363701,1734912649911,-500.0,0.00019726,2]
[346363703,1734912649920,-500.0,0.00019726,2]
[346363705,1734912649930,-500.0,0.00019726,2]
[346363707,1734912649939,-500.0,0.00019726,2]
[346363709,1734912649948,-500.0,0.00019726,2]
[346363711,1734912649958,-500.0,0.00019726,2]
[346363713,1734912649967,-500.0,0.00019726,2]
[346363715,1734912649977,-500.0,0.00019726,2]
[346363717,1734912649986,-262.3,0.00019726,2]
[346363719,1734912649997,-500.0,0.00019726,2]
[346363721,1734912650006,-500.0,0.00019726,2]
[346363723,1734912650016,-500.0,0.00019726,2]
[346363725,1734912650026,-500.0,0.00019726,2]
[346363727,1734912650037,-500.0,0.00019726,2]
[346363729,1734912650047,-500.0,0.00019726,2]
[346363731,1734912650056,-150.0,0.00019726,2]
[346363733,1734912650066,-384.26398046,0.00019726,2]
[346363735,1734912650078,-500.0,0.00019726,2]
[346363737,1734912650088,-500.0,0.00019726,2]
[346363739,1734912650098,-500.0,0.00019726,2]
[346363741,1734912650108,-558.56,0.00019726,2]
[346363743,1734912650118,-500.0,0.00019726,2]
[346363745,1734912650127,-500.0,0.00019726,2]
[346363747,1734912650136,-500.0,0.00019726,2]
[346363749,1734912650146,-500.0,0.00019726,2]
[346363751,1734912650156,-500.0,0.00019726,2]
[346363753,1734912650166,-500.0,0.00019726,2]
[346363755,1734912650175,-500.0,0.00019726,2]
[346363757,1734912650184,-664.5,0.00019726,2]
[346363760,1734912650194,-500.0,0.00019726,2]
[346363762,1734912650204,-500.0,0.00019726,2]
[346363764,1734912650214,-500.0,0.00019726,2]
[346363766,1734912650224,-500.0,0.00019726,2]
[346363786,1734912650402,-500.0,0.00019726,2]
[346363788,1734912650412,-500.0,0.00019726,2]
[346363790,1734912650422,-500.0,0.00019726,2]
[346363792,1734912650431,-629.63,0.00019726,2]
[346363794,1734912650441,-500.0,0.00019726,2]
[346363796,1734912650450,-500.0,0.00019726,2]
[346363798,1734912650461,-500.0,0.00019726,2]
[346363800,1734912650470,-500.0,0.00019726,2]
[346363802,1734912650479,-500.0,0.00019726,2]
[346363804,1734912650490,-500.0,0.00019726,2]
[346363806,1734912650499,-500.0,0.00019726,2]
[346363808,1734912650508,-500.0,0.00019726,2]
[346363810,1734912650517,-500.0,0.00019726,2]
[346363812,1734912650526,-500.0,0.00019726,2]
[346363814,1734912650538,-500.0,0.00019726,2]
[346363816,1734912650547,-500.0,0.00019726,2]
[346363818,1734912650557,-500.0,0.00019726,2]
[346363820,1734912650566,-621.38,0.00019726,2]
[346363822,1734912650575,-500.0,0.00019726,2]
[346363824,1734912650584,-500.0,0.00019726,2]
[346363826,1734912650593,-500.0,0.00019726,2]
[346363828,1734912650603,-500.0,0.00019726,2]
[346363829,1734912650612,-637.47943211,0.00019726,2]
[346363830,1734912650621,-500.0,0.00019726,2]
[346363831,1734912650631,-500.0,0.00019726,2]
[346363832,1734912650639,-500.0,0.00019726,2]
[346363833,1734912650649,-500.0,0.00019726,2]
[346363834,1734912650659,-500.0,0.00019726,2]
[346363835,1734912650668,-500.0,0.00019726,2]
[346363836,1734912650677,-500.0,0.00019726,2]
[346363837,1734912650687,-500.0,0.00019726,2]
[346363838,1734912650696,-500.0,0.00019726,2]
[346363839,1734912650705,-500.0,0.00019726,2]
[346363840,1734912650714,-500.0,0.00019726,2]
[346363842,1734912650723,-500.0,0.00019726,2]
[346363844,1734912650733,-500.0,0.00019726,2]
[346363846,1734912650743,-500.0,0.00019726,2]
[346363848,1734912650752,-500.0,0.00019726,2]
[346363850,1734912650761,-500.0,0.00019726,2]
[346363852,1734912650771,-500.0,0.00019726,2]
[346363854,1734912650782,-500.0,0.00019726,2]
[346363856,1734912650792,-500.0,0.00019726,2]
[346363858,1734912650801,-500.0,0.00019726,2]
[346363860,1734912650810,-500.0,0.00019726,2]
[346363862,1734912650819,-500.0,0.00019726,2]
[346363864,1734912650829,-500.0,0.00019726,2]
[346363866,1734912650838,-500.0,0.00019726,2]
[346363868,1734912650847,-500.0,0.00019726,2]
[346363870,1734912650856,-500.0,0.00019726,2]
[346363872,1734912650866,-500.0,0.00019726,2]
[346363874,1734912650875,-500.0,0.00019726,2]
[346363876,1734912650884,-500.0,0.00019726,2]
[346363878,1734912650893,-500.0,0.00019726,2]
[346363880,1734912650902,-500.0,0.00019726,2]
[346363882,1734912650911,-500.0,0.00019726,2]
[346363884,1734912650920,-500.0,0.00019726,2]
[346363886,1734912650929,-500.0,0.00019726,2]
[346363888,1734912650938,-500.0,0.00019726,2]
[346363890,1734912650948,-500.0,0.00019726,2]
[346363892,1734912650958,-500.0,0.00019726,2]
[346363894,1734912650967,-500.0,0.00019726,2]
[346363896,1734912650976,-500.0,0.00019726,2]
[346363898,1734912650986,-500.0,0.00019726,2]
[346363900,1734912650997,-500.0,0.00019726,2]
[346363902,1734912651006,-500.0,0.00019726,2]
[346363904,1734912651015,-566.12,0.00019726,2]
[346363906,1734912651024,-500.0,0.00019726,2]
[346363908,1734912651037,-500.0,0.00019726,2]
[346363910,1734912651047,-589.94,0.00019726,2]
[346363912,1734912651056,-500.0,0.00019726,2]
[346363914,1734912651066,-500.0,0.00019726,2]
[346363916,1734912651076,-500.0,0.00019726,2]
[346363918,1734912651086,-500.0,0.00019726,2]
[346363920,1734912651095,-746.63,0.00019726,2]
[346363922,1734912651104,-500.0,0.00019726,2]
[346363924,1734912651114,-500.0,0.00019726,2]
[346363926,1734912651123,-500.0,0.00019726,2]
[346363928,1734912651132,-680.81,0.00019726,2]
[346363930,1734912651142,-500.0,0.00019726,2]
[346363932,1734912651151,-500.0,0.00019726,2]
[346363934,1734912651160,-500.0,0.00019726,2]
[346363936,1734912651169,-500.0,0.00019726,2]
[346363938,1734912651178,-500.0,0.00019726,2]
[346363940,1734912651188,-500.0,0.00019726,2]
[346363942,1734912651197,-500.0,0.00019726,2]
[346363944,1734912651207,-500.0,0.00019726,2]
[346363947,1734912651217,-500.0,0.00019726,2]
[346363949,1734912651226,-1200.796074,0.00019726,2]
[346363951,1734912651236,-592.03742426,0.00019726,2]
[346363953,1734912651245,-500.0,0.00019726,2]
[346363955,1734912651255,-500.0,0.00019726,2]
[346363957,1734912651264,-500.0,0.00019726,2]
[346363959,1734912651273,-500.0,0.00019726,2]
[346363961,1734912651285,-500.0,0.00019726,2]
[346363963,1734912651295,-1080.408207,0.00019726,2]
[346363965,1734912651304,-500.0,0.00019726,2]
[346363967,1734912651314,-500.0,0.00019726,2]
[346363969,1734912651323,-500.0,0.00019726,2]
[346363971,1734912651332,-500.0,0.00019726,2]
[346363973,1734912651341,-500.0,0.00019726,2]
[346363975,1734912651350,-500.0,0.00019726,2]
[346363977,1734912651359,-171.64,0.00019726,2]
[346363979,1734912651368,-500.0,0.00019726,2]
[346363981,1734912651377,-500.0,0.00019726,2]
[346363983,1734912651387,-500.0,0.00019726,2]
[346363985,1734912651396,-500.0,0.00019726,2]
[346363987,1734912651405,-500.0,0.00019726,2]
[346363989,1734912651414,-500.0,0.00019726,2]
[346363991,1734912651423,-460.6,0.00019726,2]
[346363993,1734912651432,-505.7,0.00019726,2]
[346363995,1734912651441,-784.97,0.00019726,2]
[346363997,1734912651450,-407.22,0.00019726,2]
[346363999,1734912651461,-500.0,0.00019726,2]
[346364001,1734912651471,-500.0,0.00019726,2]
[346364003,1734912651480,-662.1,0.00019726,2]
[346364005,1734912651489,-500.0,0.00019726,2]
[346364007,1734912651498,-500.0,0.00019726,2]
[346364009,1734912651507,-500.0,0.00019726,2]
[346364010,1734912651516,-500.0,0.00019726,2]
[346364012,1734912651525,-500.0,0.00019726,2]
[346364015,1734912651538,-597.91,0.00019726,2]
[346364017,1734912651548,-500.0,0.00019726,2]
[346364019,1734912651557,-500.0,0.00019726,2]
[346364021,1734912651567,-500.0,0.00019726,2]
[346364023,1734912651577,-500.0,0.00019726,2]
[346364025,1734912651586,-500.0,0.00019726,2]
[346364027,1734912651596,-683.18,0.00019726,2]
[346364029,1734912651605,-913.51,0.00019726,2]
[346364031,1734912651615,-500.0,0.00019726,2]
[346364033,1734912651624,-500.0,0.00019726,2]
[346364035,1734912651633,-841.44,0.00019726,2]
[346364037,1734912651643,-500.0,0.00019726,2]
[346364039,1734912651652,-500.0,0.00019726,2]
[346364041,1734912651661,-500.0,0.00019726,2]
[346364043,1734912651671,-772.56,0.00019726,2]
[346364045,1734912651681,-362.72614994,0.00019726,2]
[346364047,1734912651690,-500.0,0.00019726,2]
[346364049,1734912651699,-500.0,0.00019726,2]
[346364051,1734912651709,-500.0,0.00019726,2]
[346364053,1734912651718,-500.0,0.00019726,2]
[346364055,1734912651727,-500.0,0.00019726,2]
[346364057,1734912651736,-262.48657783,0.00019726,2]
[346364059,1734912651745,-500.0,0.00019726,2]
[346364061,1734912651755,-500.0,0.00019726,2]
[346364063,1734912651764,-500.0,0.00019726,2]
[346364065,1734912651775,-500.0,0.00019726,2]
[346364066,1734912651786,-500.0,0.00019726,2]
[346364067,1734912651796,-500.0,0.00019726,2]
[346364068,1734912651806,-500.0,0.00019726,2]
[346364069,1734912651816,-500.0,0.00019726,2]
[346364071,1734912651826,-500.0,0.00019726,2]
[346364072,1734912651835,-500.0,0.00019726,2]
[346364073,1734912651845,-500.0,0.00019726,2]
[346364074,1734912651854,-500.0,0.00019726,2]
[346364075,1734912651864,-500.0,0.00019726,2]
[346364076,1734912651873,-500.0,0.00019726,2]
[346364077,1734912651882,-500.0,0.00019726,2]
[346364078,1734912651891,-238.27606562,0.00019726,2]
[346364079,1734912651900,-500.0,0.00019726,2]
[346364080,1734912651910,-500.0,0.00019726,2]
[346364081,1734912651919,-690.41,0.00019726,2]
[346364082,1734912651928,-549.47,0.00019726,2]
[346364083,1734912651937,-796.25,0.00019726,2]
[346364084,1734912651946,-500.0,0.00019726,2]
[346364085,1734912651955,-500.0,0.00019726,2]
[346364086,1734912651965,-500.0,0.00019726,2]
[346364087,1734912651974,-500.0,0.00019726,2]
[346364088,1734912651984,-500.0,0.00019726,2]
[346364089,1734912651995,-500.0,0.00019726,2]
[346364090,1734912652005,-536.68,0.00019726,2]
[346364091,1734912652015,-500.0,0.00019726,2]
[346364092,1734912652024,-500.0,0.00019726,2]
[346364093,1734912652037,-324.27208142,0.00019726,2]
[346364094,1734912652047,-500.0,0.00019726,2]
[346364095,1734912652056,-696.23,0.00019726,2]
[346364096,1734912652066,-500.0,0.00019726,2]
[346364097,1734912652075,-621.71,0.00019726,2]
[346364098,1734912652085,-500.0,0.00019726,2]
[346364099,1734912652094,-500.0,0.00019726,2]
[346364100,1734912652103,-500.0,0.00019726,2]
[346364101,1734912652112,-604.17,0.00019726,2]
[346364102,1734912652122,-500.0,0.00019726,2]
[346364103,1734912652131,-500.0,0.00019726,2]
[346364104,1734912652140,-516.04,0.00019726,2]
[346364105,1734912652149,-500.0,0.00019726,2]
[346364106,1734912652159,-500.0,0.00019726,2]
[346364107,1734912652168,-500.0,0.00019726,2]
[346364108,1734912652178,-500.0,0.00019726,2]
[346364109,1734912652187,-720.96,0.00019726,2]
[346364110,1734912652197,-500.0,0.00019726,2]
[346364111,1734912652207,-500.0,0.00019726,2]
[346364112,1734912652216,-500.0,0.00019726,2]
[346364113,1734912652226,-1032.87,0.00019726,2]
[346364114,1734912652236,-500.0,0.00019726,2]
[346364115,1734912652245,-656.44,0.00019726,2]
[346364116,1734912652255,-500.0,0.00019726,2]
[346364117,1734912652263,-500.0,0.00019726,2]
[346364118,1734912652273,-728.41,0.00019726,2]
[346364119,1734912652285,-500.0,0.00019726,2]
[346364120,1734912652295,-500.0,0.00019726,2]
[346364121,1734912652304,-500.0,0.00019726,2]
[346364122,1734912652313,-809.34,0.00019726,2]
[346364123,1734912652323,-500.0,0.00019726,2]
[346364124,1734912652332,-1385.84,0.00019726,2]
[346364125,1734912652341,-500.0,0.00019726,2]
[346364126,1734912652350,-500.0,0.00019726,2]
[346364127,1734912652359,-887.35,0.00019726,2]
[346364128,1734912652369,-500.0,0.00019726,2]
[346364129,1734912652378,-607.17,0.00019726,2]
[346364130,1734912652387,-881.18,0.00019726,2]
[346364131,1734912652396,-737.69,0.00019726,2]
[346364132,1734912652405,-500.0,0.00019726,2]
[346364133,1734912652414,-500.0,0.00019726,2]
[346364134,1734912652423,-1204.09,0.00019726,2]
[346364135,1734912652433,-992.65,0.00019726,2]
[346364136,1734912652442,-897.19,0.00019726,2]
[346364137,1734912652451,-2628.3,0.00019726,2]
[346364138,1734912652462,-500.0,0.00019726,2]
[346364139,1734912652471,-799.41,0.00019726,2]
[346364140,1734912652480,-540.93380407,0.00019726,2]
[346364141,1734912652489,-2248.91,0.00019726,2]
[346364142,1734912652499,-500.0,0.00019726,2]
[346364143,1734912652508,-657.67,0.00019726,2]
[346364144,1734912652517,-808.12,0.00019726,2]
[346364145,1734912652526,-5037.59,0.00019726,2]
[346364146,1734912652538,-1526.11,0.00019726,2]
[346364147,1734912652547,-1439.39,0.00019726,2]
[346364148,1734912652557,-500.0,0.00019726,2]
[346364149,1734912652566,-617.54,0.00019726,2]
[346364150,1734912652575,-500.0,0.00019726,2]
[346364151,1734912652585,-6319.69,0.00019726,2]
[346364152,1734912652594,-500.0,0.00019726,2]
[346364153,1734912652603,-725.09,0.00019726,2]
[346364154,1734912652612,-500.0,0.00019726,2]
[346364155,1734912652621,-500.0,0.00019726,2]
[346364156,1734912652630,-500.0,0.00019726,2]
[346364157,1734912652639,-1140.46,0.00019726,2]
[346364158,1734912652695,-500.0,0.00019726,2]
[346364159,1734912652704,-802.82,0.00019726,2]
[346364160,1734912652714,-500.0,0.00019726,2]
[346364161,1734912652723,-588.87,0.00019726,2]
[346364162,1734912652732,-513.38,0.00019726,2]
[346364163,1734912652741,-974.15,0.00019726,2]
[346364164,1734912652750,-1387.39,0.00019726,2]
[346364165,1734912652760,-920.71,0.00019726,2]
[346364166,1734912652769,-831.67,0.00019726,2]
[346364167,1734912652779,-558.17,0.00019726,2]
[346364168,1734912652790,-1197.26,0.00019726,2]
[346364169,1734912652799,-908.23,0.00019726,2]
[346364170,1734912652808,-500.0,0.00019726,2]
[346364171,1734912652817,-1634.03,0.00019726,2]
[346364172,1734912652826,-500.0,0.00019726,2]
[346364173,1734912652835,-508.04668162,0.00019726,2]
[346364174,1734912652844,-1307.81,0.00019726,2]
[346364175,1734912652852,-1460.65,0.00019726,2]
[346364176,1734912652861,-500.0,0.00019726,2]
[346364177,1734912652870,-500.0,0.00019726,2]
[346364178,1734912652880,-500.0,0.00019726,2]
[346364179,1734912652889,-840.69,0.00019726,2]
[346364180,1734912652898,-1123.22,0.00019726,2]
[346364181,1734912652907,-1396.96,0.00019726,2]
[346364182,1734912652917,-500.0,0.00019726,2]
[346364183,1734912652925,-5997.69,0.00019726,2]
[346364184,1734912652934,-500.0,0.00019726,2]
[346364185,1734912652943,-1522.97,0.00019726,2]
[346364186,1734912652953,-4116.24,0.00019726,2]
[346364187,1734912652962,-500.0,0.00019726,2]
[346364188,1734912652971,-500.0,0.00019726,2]
[346364189,1734912652980,-3274.36,0.00019726,2]
[346364190,1734912652989,-694.16,0.00019726,2]
[346364191,1734912652998,-1484.64,0.00019726,2]